[Event "*** Titled Tuesday Blitz"]
[Site "Chess.com"]
[Date "2020.04.21"]
[Round "3"]
[White "Andrii_Prydun"]
[Black "mshuaau0"]
[Result "1-0"]
[WhiteElo "2349"]
[BlackElo "2108"]
[TimeControl "180+1"]
[EndTime "10:29:00 PDT"]
[Termination "Andrii_Prydun won by checkmate"]

1. d4 {[%clk 0:03:00.9]} 1... d5 {[%clk 0:02:59.9]} 2. Nc3 {[%clk 0:03:01.2]}
2... Nf6 {[%clk 0:03:00]} 3. Bf4 {[%clk 0:03:01.5]} 3... e6 {[%clk 0:02:58.8]}
4. e3 {[%clk 0:03:01.6]} 4... Bd6 {[%clk 0:02:59]} 5. Bg3 {[%clk 0:02:55.6]}
5... O-O {[%clk 0:02:56]} 6. Bd3 {[%clk 0:02:52.6]} 6... c5 {[%clk 0:02:54.8]}
7. dxc5 {[%clk 0:02:52.4]} 7... Bxc5 {[%clk 0:02:54.3]} 8. Nf3 {[%clk 0:02:51]}
8... Nc6 {[%clk 0:02:54.4]} 9. O-O {[%clk 0:02:45]} 9... Bd6 {[%clk 0:02:52.1]}
10. e4 {[%clk 0:02:29.3]} 10... Bxg3 {[%clk 0:02:49]} 11. hxg3 {[%clk
0:02:27.7]} 11... dxe4 {[%clk 0:02:49]} 12. Nxe4 {[%clk 0:02:26.9]} 12... Nxe4
{[%clk 0:02:49]} 13. Bxe4 {[%clk 0:02:26.7]} 13... Qc7 {[%clk 0:02:43.9]} 14.
Qd3 {[%clk 0:02:24.6]} 14... g6 {[%clk 0:02:42.3]} 15. Qc3 {[%clk 0:02:14.8]}
15... Bd7 {[%clk 0:02:22.7]} 16. Rad1 {[%clk 0:02:13.5]} 16... Rac8 {[%clk
0:02:15.9]} 17. Rd2 {[%clk 0:02:08.7]} 17... f5 {[%clk 0:02:03]} 18. Rfd1 {[%clk
0:02:06.8]} 18... Rfd8 {[%clk 0:02:00.2]} 19. Bd3 {[%clk 0:02:05.4]} 19... e5
{[%clk 0:01:32.8]} 20. Bc4+ {[%clk 0:02:03.2]} 20... Kh8 {[%clk 0:01:32.6]} 21.
Ng5 {[%clk 0:02:00]} 21... Nb8 {[%clk 0:00:45]} 22. Nf7+ {[%clk 0:01:58.9]}
22... Kg7 {[%clk 0:00:43.8]} 23. Nxe5 {[%clk 0:01:59.8]} 23... Kh6 {[%clk
0:00:40.6]} 24. Rxd7 {[%clk 0:01:58.8]} 24... Nxd7 {[%clk 0:00:33.9]} 25. Rxd7
{[%clk 0:01:59.7]} 25... Rxd7 {[%clk 0:00:32.9]} 26. Qe3+ {[%clk 0:01:20.4]}
26... Kg7 {[%clk 0:00:32.2]} 27. Nxd7 {[%clk 0:01:20.1]} 27... Qxd7 {[%clk
0:00:30.9]} 28. Qe5+ {[%clk 0:00:50.9]} 28... Kh6 {[%clk 0:00:29]} 29. Qe3+
{[%clk 0:00:50.2]} 29... Kg7 {[%clk 0:00:29]} 30. Qe2 {[%clk 0:00:24.7]} 30...
Re8 {[%clk 0:00:25.5]} 31. Qf1 {[%clk 0:00:21.3]} 31... Qd4 {[%clk 0:00:25.1]}
32. Kh2 {[%clk 0:00:10.6]} 32... Qxb2 {[%clk 0:00:23.5]} 33. Bb3 {[%clk
0:00:10.6]} 33... Qd4 {[%clk 0:00:22.4]} 34. Qb5 {[%clk 0:00:09.8]} 34... Re7
{[%clk 0:00:20.6]} 35. f3 {[%clk 0:00:06.3]} 35... Qe5 {[%clk 0:00:20.2]} 36.
Qc4 {[%clk 0:00:05.6]} 36... h5 {[%clk 0:00:17.1]} 37. Qg8+ {[%clk 0:00:05.4]}
37... Kf6 {[%clk 0:00:17.4]} 38. Qf8+ {[%clk 0:00:05.3]} 38... Kg5 {[%clk
0:00:06.8]} 39. f4+ {[%clk 0:00:05.6]} 39... Qxf4 {[%clk 0:00:06.5]} 40. gxf4+
{[%clk 0:00:06.5]} 40... Kg4 {[%clk 0:00:06.5]} 41. Qxe7 {[%clk 0:00:06.7]}
41... h4 {[%clk 0:00:06.9]} 42. Qg5# {[%clk 0:00:06.4]} 1-0

[Event "*** Titled Tuesday Blitz"]
[Site "Chess.com"]
[Date "2020.04.21"]
[Round "3"]
[White "eldidi20"]
[Black "keepitcool9499"]
[Result "1-0"]
[WhiteElo "2161"]
[BlackElo "2396"]
[TimeControl "180+1"]
[EndTime "10:29:01 PDT"]
[Termination "eldidi20 won by checkmate"]

1. e4 {[%clk 0:03:00.9]} 1... e6 {[%clk 0:02:59.9]} 2. d4 {[%clk 0:02:58.8]}
2... d5 {[%clk 0:03:00.3]} 3. Nc3 {[%clk 0:02:58.6]} 3... Nf6 {[%clk 0:02:59.9]}
4. e5 {[%clk 0:02:57.4]} 4... Nfd7 {[%clk 0:02:59]} 5. f4 {[%clk 0:02:57.9]}
5... c5 {[%clk 0:02:59.1]} 6. Nf3 {[%clk 0:02:58.8]} 6... Nc6 {[%clk 0:02:59.8]}
7. Be3 {[%clk 0:02:58.1]} 7... a6 {[%clk 0:03:00.7]} 8. Qd2 {[%clk 0:02:57.9]}
8... b5 {[%clk 0:03:01.2]} 9. dxc5 {[%clk 0:02:58.4]} 9... Bxc5 {[%clk
0:03:00.2]} 10. Bxc5 {[%clk 0:02:57.9]} 10... Nxc5 {[%clk 0:03:01.1]} 11. Qf2
{[%clk 0:02:58.2]} 11... Qe7 {[%clk 0:02:57.1]} 12. Bd3 {[%clk 0:02:56.9]} 12...
Nxd3+ {[%clk 0:02:45.6]} 13. cxd3 {[%clk 0:02:57.8]} 13... b4 {[%clk 0:02:44]}
14. Ne2 {[%clk 0:02:57.7]} 14... a5 {[%clk 0:02:43]} 15. Ned4 {[%clk 0:02:58]}
15... Nxd4 {[%clk 0:02:42.3]} 16. Nxd4 {[%clk 0:02:58.9]} 16... Ba6 {[%clk
0:02:42.3]} 17. Rd1 {[%clk 0:02:59.1]} 17... Rc8 {[%clk 0:02:36.4]} 18. O-O
{[%clk 0:02:58]} 18... O-O {[%clk 0:02:35.7]} 19. Kh1 {[%clk 0:02:50.4]} 19...
f6 {[%clk 0:02:31.9]} 20. Qe3 {[%clk 0:02:42.3]} 20... f5 {[%clk 0:02:20.5]} 21.
Rg1 {[%clk 0:02:41.3]} 21... Kh8 {[%clk 0:02:12.5]} 22. g4 {[%clk 0:02:41.1]}
22... fxg4 {[%clk 0:02:04.4]} 23. Rxg4 {[%clk 0:02:39.8]} 23... Bb7 {[%clk
0:01:58.9]} 24. Rdg1 {[%clk 0:02:37.5]} 24... g6 {[%clk 0:01:56.4]} 25. Qh3
{[%clk 0:02:21.5]} 25... Rf5 {[%clk 0:01:13.2]} 26. Rxg6 {[%clk 0:02:00.1]}
26... Rxf4 {[%clk 0:01:04.9]} 27. Rg7 {[%clk 0:00:46.8]} 27... Qh4 {[%clk
0:01:01.7]} 28. Qxh4 {[%clk 0:00:28.8]} 28... Rxh4 {[%clk 0:01:02.6]} 29. Nxe6
{[%clk 0:00:29.1]} 29... d4+ {[%clk 0:01:00]} 30. Rxb7 {[%clk 0:00:28.3]} 30...
h5 {[%clk 0:00:51.4]} 31. Rc7 {[%clk 0:00:23.5]} 31... Re8 {[%clk 0:00:46.7]}
32. Ng5 {[%clk 0:00:23.6]} 32... Rf8 {[%clk 0:00:38.5]} 33. Ne4 {[%clk
0:00:17.2]} 33... Rf3 {[%clk 0:00:29.3]} 34. e6 {[%clk 0:00:13.9]} 34... Rfh3
{[%clk 0:00:27]} 35. Rg2 {[%clk 0:00:12.6]} 35... Re3 {[%clk 0:00:23.1]} 36. e7
{[%clk 0:00:11]} 36... Re1+ {[%clk 0:00:22.4]} 37. Rg1 {[%clk 0:00:11.3]} 37...
Rhxe4 {[%clk 0:00:19.2]} 38. dxe4 {[%clk 0:00:12.2]} 38... Rxe4 {[%clk
0:00:18.6]} 39. Rf1 {[%clk 0:00:10.6]} 39... d3 {[%clk 0:00:14.3]} 40. Rf8+
{[%clk 0:00:06.5]} 40... Kg7 {[%clk 0:00:13.8]} 41. e8=Q+ {[%clk 0:00:07.4]}
41... Kh6 {[%clk 0:00:09.6]} 42. Rc6+ {[%clk 0:00:04.8]} 42... Kg5 {[%clk
0:00:08.9]} 43. Qxe4 {[%clk 0:00:05.4]} 43... d2 {[%clk 0:00:08.5]} 44. Rg6#
{[%clk 0:00:05.9]} 1-0

[Event "*** Titled Tuesday Blitz"]
[Site "Chess.com"]
[Date "2020.04.21"]
[Round "3"]
[White "1977Ivan"]
[Black "GadimbayliA"]
[Result "1-0"]
[WhiteElo "2695"]
[BlackElo "2925"]
[TimeControl "180+1"]
[EndTime "10:29:02 PDT"]
[Termination "1977Ivan won on time"]

1. e4 {[%clk 0:03:00.9]} 1... e5 {[%clk 0:02:59.6]} 2. Nf3 {[%clk 0:03:00.2]}
2... d5 {[%clk 0:02:59.9]} 3. exd5 {[%clk 0:02:54.5]} 3... e4 {[%clk 0:03:00.8]}
4. Qe2 {[%clk 0:02:53.8]} 4... Nf6 {[%clk 0:03:01.4]} 5. d3 {[%clk 0:02:53]}
5... Bb4+ {[%clk 0:03:01.3]} 6. c3 {[%clk 0:02:34]} 6... O-O {[%clk 0:03:02.2]}
7. dxe4 {[%clk 0:02:34.1]} 7... Bd6 {[%clk 0:02:55.9]} 8. Nbd2 {[%clk
0:02:26.4]} 8... Re8 {[%clk 0:02:54.9]} 9. Nd4 {[%clk 0:02:26.1]} 9... Nxd5
{[%clk 0:02:27.5]} 10. g3 {[%clk 0:02:18]} 10... b6 {[%clk 0:02:11.3]} 11. Bg2
{[%clk 0:02:00.4]} 11... Ba6 {[%clk 0:02:11.1]} 12. Nc4 {[%clk 0:02:00.7]} 12...
Bc5 {[%clk 0:01:15.1]} 13. O-O {[%clk 0:01:43.1]} 13... Nxc3 {[%clk 0:00:35.2]}
14. bxc3 {[%clk 0:01:41.5]} 14... Bxd4 {[%clk 0:00:35.8]} 15. cxd4 {[%clk
0:01:00.5]} 15... Qxd4 {[%clk 0:00:36.7]} 16. Bb2 {[%clk 0:01:00.9]} 16... Qxc4
{[%clk 0:00:36.8]} 17. Qg4 {[%clk 0:01:00.7]} 17... f6 {[%clk 0:00:21.6]} 18.
Rfc1 {[%clk 0:00:38.2]} 18... Qf7 {[%clk 0:00:20.7]} 19. e5 {[%clk 0:00:34.1]}
19... c6 {[%clk 0:00:20]} 20. exf6 {[%clk 0:00:30]} 20... g6 {[%clk 0:00:15.4]}
21. h4 {[%clk 0:00:28.1]} 21... Bb7 {[%clk 0:00:11]} 22. Rd1 {[%clk 0:00:24]}
22... Bc8 {[%clk 0:00:07.8]} 23. Qg5 {[%clk 0:00:23.7]} 23... Bf5 {[%clk
0:00:07]} 24. g4 {[%clk 0:00:21.3]} 24... Be6 {[%clk 0:00:04.2]} 25. h5 {[%clk
0:00:19.7]} 25... Nd7 {[%clk 0:00:04.4]} 26. Rd6 {[%clk 0:00:19.6]} 26... Nc5
{[%clk 0:00:04]} 27. Rad1 {[%clk 0:00:18.7]} 27... Rac8 {[%clk 0:00:03]} 28.
hxg6 {[%clk 0:00:11.2]} 28... Qxg6 {[%clk 0:00:03.9]} 29. f7+ {[%clk 0:00:11.2]}
29... Kxf7 {[%clk 0:00:04.4]} 30. Qf4+ {[%clk 0:00:08.3]} 30... Kg8 {[%clk
0:00:04.3]} 31. Qe5 {[%clk 0:00:08.4]} 31... Qxg4 {[%clk 0:00:03.7]} 32. Qh8+
{[%clk 0:00:07.4]} 32... Kf7 {[%clk 0:00:04.4]} 33. Qxh7+ {[%clk 0:00:07.4]}
33... Kf8 {[%clk 0:00:04.2]} 34. Qh6+ {[%clk 0:00:07.3]} 34... Kf7 {[%clk
0:00:03.7]} 35. Qf6+ {[%clk 0:00:07.3]} 35... Kg8 {[%clk 0:00:04.2]} 36. Qh8+
{[%clk 0:00:07.3]} 36... Kf7 {[%clk 0:00:04.5]} 37. Qh7+ {[%clk 0:00:07.6]}
37... Kf8 {[%clk 0:00:04.9]} 38. R1d4 {[%clk 0:00:07.5]} 38... Qf5 {[%clk
0:00:01.5]} 39. Rf4 {[%clk 0:00:07.4]} 1-0

[Event "*** Titled Tuesday Blitz"]
[Site "Chess.com"]
[Date "2020.04.21"]
[Round "3"]
[White "Mikhail_Golubev"]
[Black "nekotyanof"]
[Result "1-0"]
[WhiteElo "2533"]
[BlackElo "2258"]
[TimeControl "180+1"]
[EndTime "10:29:02 PDT"]
[Termination "Mikhail_Golubev won on time"]

1. e4 {[%clk 0:03:00.9]} 1... c5 {[%clk 0:03:00.3]} 2. Nf3 {[%clk 0:03:00.4]}
2... Nc6 {[%clk 0:03:00.6]} 3. Nc3 {[%clk 0:02:59.7]} 3... Nf6 {[%clk
0:03:00.7]} 4. Bb5 {[%clk 0:02:56.8]} 4... g6 {[%clk 0:02:59.3]} 5. e5 {[%clk
0:02:39.5]} 5... Ng4 {[%clk 0:02:58.2]} 6. Bxc6 {[%clk 0:02:35]} 6... bxc6
{[%clk 0:02:56.3]} 7. h3 {[%clk 0:02:30.4]} 7... Nh6 {[%clk 0:02:56.3]} 8. O-O
{[%clk 0:02:25.1]} 8... Bg7 {[%clk 0:02:55.8]} 9. Re1 {[%clk 0:02:24.6]} 9...
O-O {[%clk 0:02:55.3]} 10. d4 {[%clk 0:02:18.9]} 10... cxd4 {[%clk 0:02:54.4]}
11. Nxd4 {[%clk 0:02:18.8]} 11... Bb7 {[%clk 0:02:47.2]} 12. Nb3 {[%clk
0:02:12]} 12... d6 {[%clk 0:02:42.4]} 13. exd6 {[%clk 0:02:06.4]} 13... exd6
{[%clk 0:02:43.3]} 14. Bf4 {[%clk 0:02:01.1]} 14... d5 {[%clk 0:02:28]} 15. Be5
{[%clk 0:01:25.4]} 15... f6 {[%clk 0:02:08]} 16. Bd4 {[%clk 0:01:22.4]} 16...
Nf5 {[%clk 0:01:47.9]} 17. Bc5 {[%clk 0:01:21.8]} 17... Rf7 {[%clk 0:01:45]} 18.
Qe2 {[%clk 0:01:15.3]} 18... Qc7 {[%clk 0:01:38.2]} 19. Rad1 {[%clk 0:01:10.9]}
19... a5 {[%clk 0:01:30.4]} 20. Na4 {[%clk 0:00:58]} 20... Ba6 {[%clk
0:01:25.7]} 21. Qe6 {[%clk 0:00:54.5]} 21... Bb5 {[%clk 0:01:06.1]} 22. Nc3
{[%clk 0:00:53.8]} 22... Bc4 {[%clk 0:00:41.4]} 23. Na4 {[%clk 0:00:39.6]} 23...
Rb8 {[%clk 0:00:30.6]} 24. g4 {[%clk 0:00:25.1]} 24... Nh4 {[%clk 0:00:27.4]}
25. Bd6 {[%clk 0:00:25.1]} 25... Qd8 {[%clk 0:00:11.6]} 26. Bxb8 {[%clk
0:00:22.3]} 26... Nf3+ {[%clk 0:00:05.7]} 27. Kg2 {[%clk 0:00:22]} 27... Nxe1+
{[%clk 0:00:06.2]} 28. Rxe1 {[%clk 0:00:21.6]} 28... Qxb8 {[%clk 0:00:06.8]} 29.
Qxc6 {[%clk 0:00:20.5]} 29... Bf8 {[%clk 0:00:04.6]} 30. Nac5 {[%clk 0:00:19]}
30... Rc7 {[%clk 0:00:02.8]} 31. Qe6+ {[%clk 0:00:18]} 31... Rf7 {[%clk
0:00:02.9]} 32. Nd7 {[%clk 0:00:16.9]} 32... Qd8 {[%clk 0:00:03.3]} 33. Nbc5
{[%clk 0:00:16.1]} 33... Kg7 {[%clk 0:00:03.1]} 34. Nxf8 {[%clk 0:00:15.9]}
34... Qxf8 {[%clk 0:00:04]} 35. Qc6 {[%clk 0:00:14.6]} 35... Qd8 {[%clk
0:00:02.7]} 36. Re8 {[%clk 0:00:13.7]} 36... Qc7 {[%clk 0:00:01.9]} 37. Ne6+
{[%clk 0:00:13.2]} 37... Kh6 {[%clk 0:00:01.4]} 38. Nxc7 {[%clk 0:00:13.3]} 1-0

[Event "*** Titled Tuesday Blitz"]
[Site "Chess.com"]
[Date "2020.04.21"]
[Round "3"]
[White "LiamPutnam2008"]
[Black "Mischuk_D"]
[Result "0-1"]
[WhiteElo "2480"]
[BlackElo "2677"]
[TimeControl "180+1"]
[EndTime "10:29:03 PDT"]
[Termination "Mischuk_D won by resignation"]

1. e4 {[%clk 0:03:00.9]} 1... c5 {[%clk 0:02:53.3]} 2. Nf3 {[%clk 0:03:00.2]}
2... d6 {[%clk 0:02:53.6]} 3. d4 {[%clk 0:02:59.7]} 3... cxd4 {[%clk 0:02:54.5]}
4. Nxd4 {[%clk 0:03:00.4]} 4... Nf6 {[%clk 0:02:54.8]} 5. Nc3 {[%clk 0:03:00.7]}
5... a6 {[%clk 0:02:55.1]} 6. Be2 {[%clk 0:02:52.3]} 6... e5 {[%clk 0:02:53.4]}
7. Nf3 {[%clk 0:02:50.2]} 7... Be7 {[%clk 0:02:53.5]} 8. O-O {[%clk 0:02:49.4]}
8... O-O {[%clk 0:02:53]} 9. Bg5 {[%clk 0:02:49.8]} 9... Be6 {[%clk 0:02:52.6]}
10. Bxf6 {[%clk 0:02:49.5]} 10... Bxf6 {[%clk 0:02:52.5]} 11. Nd5 {[%clk
0:02:49.6]} 11... Nd7 {[%clk 0:02:52.7]} 12. c3 {[%clk 0:02:48.8]} 12... Rc8
{[%clk 0:02:46.5]} 13. Qd2 {[%clk 0:02:45.2]} 13... Nc5 {[%clk 0:02:45.9]} 14.
Qe3 {[%clk 0:02:25]} 14... Bxd5 {[%clk 0:02:45]} 15. exd5 {[%clk 0:02:25.9]}
15... Re8 {[%clk 0:02:34]} 16. Rfd1 {[%clk 0:02:23.6]} 16... g6 {[%clk
0:02:32.7]} 17. b4 {[%clk 0:02:11.4]} 17... Na4 {[%clk 0:02:32]} 18. c4 {[%clk
0:02:07.3]} 18... e4 {[%clk 0:02:25.7]} 19. Nd4 {[%clk 0:02:06.3]} 19... Qb6
{[%clk 0:02:24.8]} 20. Rab1 {[%clk 0:01:56.1]} 20... a5 {[%clk 0:02:04.7]} 21.
a3 {[%clk 0:01:51.8]} 21... axb4 {[%clk 0:02:01.7]} 22. axb4 {[%clk 0:01:50.1]}
22... Qd8 {[%clk 0:01:43.7]} 23. Qb3 {[%clk 0:01:40.6]} 23... Nb6 {[%clk
0:01:41.5]} 24. Nc2 {[%clk 0:01:30.1]} 24... h5 {[%clk 0:01:36.8]} 25. Ne3
{[%clk 0:01:28.2]} 25... Bg5 {[%clk 0:01:36.3]} 26. Rdc1 {[%clk 0:01:15.8]}
26... Nd7 {[%clk 0:01:36]} 27. Ra1 {[%clk 0:00:55.8]} 27... Ne5 {[%clk
0:01:34.4]} 28. h3 {[%clk 0:00:53.4]} 28... Qb6 {[%clk 0:01:32.5]} 29. Rab1
{[%clk 0:00:47.8]} 29... Nd7 {[%clk 0:01:19.2]} 30. g3 {[%clk 0:00:43.6]} 30...
h4 {[%clk 0:01:16.7]} 31. Bg4 {[%clk 0:00:35.1]} 31... Re7 {[%clk 0:01:16.3]}
32. c5 {[%clk 0:00:31.2]} 32... dxc5 {[%clk 0:01:12.8]} 33. bxc5 {[%clk
0:00:32.1]} 33... Qxb3 {[%clk 0:01:12.9]} 34. Rxb3 {[%clk 0:00:32.3]} 34... Rxc5
{[%clk 0:01:11.8]} 35. Rd1 {[%clk 0:00:16.8]} 35... f5 {[%clk 0:01:08.3]} 36.
Be2 {[%clk 0:00:16.1]} 36... hxg3 {[%clk 0:01:08.2]} 37. fxg3 {[%clk 0:00:15.1]}
37... Ne5 {[%clk 0:01:07.9]} 38. d6 {[%clk 0:00:12.2]} 38... Rd7 {[%clk
0:01:08]} 39. Ng2 {[%clk 0:00:09.9]} 39... Kg7 {[%clk 0:01:02.7]} 40. h4 {[%clk
0:00:09.3]} 40... Bh6 {[%clk 0:01:02.8]} 41. Nf4 {[%clk 0:00:06.2]} 41... Bxf4
{[%clk 0:01:02.4]} 42. gxf4 {[%clk 0:00:07.1]} 42... Nf7 {[%clk 0:01:03.2]} 43.
Rb6 {[%clk 0:00:06.6]} 43... Rc6 {[%clk 0:01:02.5]} 44. Rb5 {[%clk 0:00:01.4]}
44... Rcxd6 {[%clk 0:01:02.1]} 45. Rxd6 {[%clk 0:00:01.9]} 45... Nxd6 {[%clk
0:01:03]} 46. Rb6 {[%clk 0:00:02.3]} 46... Ne8 {[%clk 0:00:58.1]} 47. Rb2 {[%clk
0:00:02.7]} 47... Nf6 {[%clk 0:00:58.1]} 48. Kf2 {[%clk 0:00:03]} 48... Nd5
{[%clk 0:00:56.5]} 49. Rb3 {[%clk 0:00:03.6]} 49... Nxf4 {[%clk 0:00:56.4]} 50.
Bc4 {[%clk 0:00:03.8]} 50... Kh6 {[%clk 0:00:54.4]} 51. Ke3 {[%clk 0:00:03.5]}
51... Nd5+ {[%clk 0:00:54.2]} 52. Bxd5 {[%clk 0:00:02.8]} 52... Rxd5 {[%clk
0:00:54]} 53. Rxb7 {[%clk 0:00:03.7]} 53... Rd3+ {[%clk 0:00:54.3]} 54. Kf4
{[%clk 0:00:03.6]} 54... Rh3 {[%clk 0:00:54.2]} 55. Ke5 {[%clk 0:00:04.3]} 55...
Rxh4 {[%clk 0:00:54.3]} 56. Rb8 {[%clk 0:00:05.2]} 56... Kg5 {[%clk 0:00:54.1]}
57. Rb1 {[%clk 0:00:04.6]} 57... e3 {[%clk 0:00:53.8]} 58. Re1 {[%clk
0:00:04.4]} 58... Re4+ {[%clk 0:00:53.7]} 59. Kd5 {[%clk 0:00:04.1]} 59... e2
{[%clk 0:00:52.6]} 60. Kd6 {[%clk 0:00:02]} 60... Kf4 {[%clk 0:00:52.7]} 61. Kc5
{[%clk 0:00:02.3]} 61... g5 {[%clk 0:00:52.9]} 0-1

[Event "*** Titled Tuesday Blitz"]
[Site "Chess.com"]
[Date "2020.04.21"]
[Round "3"]
[White "crazy_machine"]
[Black "Bacyanide"]
[Result "0-1"]
[WhiteElo "2593"]
[BlackElo "2409"]
[TimeControl "180+1"]
[EndTime "10:29:03 PDT"]
[Termination "Bacyanide won by checkmate"]

1. d4 {[%clk 0:03:00.9]} 1... d5 {[%clk 0:02:59.8]} 2. Nc3 {[%clk 0:02:58]} 2...
Nf6 {[%clk 0:02:57.3]} 3. Bf4 {[%clk 0:02:58.2]} 3... e6 {[%clk 0:02:53.2]} 4.
Nb5 {[%clk 0:02:57.7]} 4... Na6 {[%clk 0:02:53.2]} 5. e3 {[%clk 0:02:57.6]} 5...
c6 {[%clk 0:02:53.3]} 6. Nc3 {[%clk 0:02:57.6]} 6... Nb8 {[%clk 0:02:50.7]} 7.
Nf3 {[%clk 0:02:57.9]} 7... Bd6 {[%clk 0:02:50.9]} 8. Ne5 {[%clk 0:02:58.2]}
8... Qc7 {[%clk 0:02:48.8]} 9. Bg3 {[%clk 0:02:56.1]} 9... Nfd7 {[%clk
0:02:48.9]} 10. f4 {[%clk 0:02:50.7]} 10... a6 {[%clk 0:02:39.1]} 11. Bd3 {[%clk
0:02:50.2]} 11... O-O {[%clk 0:02:32.5]} 12. O-O {[%clk 0:02:31.2]} 12... f5
{[%clk 0:02:32.3]} 13. h3 {[%clk 0:02:29.3]} 13... c5 {[%clk 0:02:32]} 14. Kh1
{[%clk 0:02:27.8]} 14... Nc6 {[%clk 0:02:31]} 15. Be2 {[%clk 0:02:21.3]} 15...
b5 {[%clk 0:02:24.5]} 16. Bf3 {[%clk 0:02:14]} 16... Nf6 {[%clk 0:02:11.1]} 17.
Bh4 {[%clk 0:02:08.1]} 17... b4 {[%clk 0:02:09.5]} 18. Na4 {[%clk 0:01:52.4]}
18... a5 {[%clk 0:01:56.6]} 19. Bxf6 {[%clk 0:01:25]} 19... gxf6 {[%clk
0:01:42.9]} 20. Nxc6 {[%clk 0:01:22.2]} 20... Qxc6 {[%clk 0:01:43.1]} 21. Nxc5
{[%clk 0:01:22.5]} 21... Bxc5 {[%clk 0:01:42.8]} 22. dxc5 {[%clk 0:01:23.4]}
22... Qxc5 {[%clk 0:01:43.6]} 23. Qd3 {[%clk 0:01:22.3]} 23... Ba6 {[%clk
0:01:43.1]} 24. Qd2 {[%clk 0:01:17.9]} 24... Bxf1 {[%clk 0:01:42.9]} 25. Rxf1
{[%clk 0:01:18.8]} 25... Rfc8 {[%clk 0:01:41.5]} 26. Bd1 {[%clk 0:01:19.1]}
26... a4 {[%clk 0:01:39.4]} 27. Qe1 {[%clk 0:01:18.7]} 27... a3 {[%clk
0:01:39.3]} 28. b3 {[%clk 0:01:17.1]} 28... Qc3 {[%clk 0:01:37.9]} 29. Qh4
{[%clk 0:01:14.8]} 29... Ra7 {[%clk 0:01:37.4]} 30. g4 {[%clk 0:01:09.1]} 30...
fxg4 {[%clk 0:01:35.4]} 31. Bxg4 {[%clk 0:01:08.3]} 31... f5 {[%clk 0:01:32.6]}
32. Bh5 {[%clk 0:01:03.3]} 32... Rg7 {[%clk 0:01:32.2]} 33. Qf2 {[%clk
0:01:00.7]} 33... Qb2 {[%clk 0:01:30.4]} 34. Bd1 {[%clk 0:00:56]} 34... Qxa2
{[%clk 0:01:28.5]} 35. e4 {[%clk 0:00:56.5]} 35... Qb2 {[%clk 0:01:19]} 36. Qb6
{[%clk 0:00:55.9]} 36... Re8 {[%clk 0:01:14.3]} 37. Bh5 {[%clk 0:00:45.4]} 37...
a2 {[%clk 0:00:58.2]} 38. Bxe8 {[%clk 0:00:41.9]} 38... a1=Q {[%clk 0:00:58.3]}
39. Qxe6+ {[%clk 0:00:41.6]} 39... Kf8 {[%clk 0:00:58.5]} 40. Bb5 {[%clk
0:00:34.3]} 40... Qa8 {[%clk 0:00:28.7]} 41. Qxf5+ {[%clk 0:00:30]} 41... Kg8
{[%clk 0:00:28.7]} 42. exd5 {[%clk 0:00:29.9]} 42... Kh8 {[%clk 0:00:27.2]} 43.
Bc6 {[%clk 0:00:27.6]} 43... Qd8 {[%clk 0:00:25.9]} 44. Rd1 {[%clk 0:00:21.9]}
44... Qbf6 {[%clk 0:00:25.8]} 45. Qe4 {[%clk 0:00:21.5]} 45... Qg6 {[%clk
0:00:24.6]} 46. Qf3 {[%clk 0:00:20.4]} 46... Qh4 {[%clk 0:00:22.3]} 47. d6
{[%clk 0:00:17.7]} 47... Qgg3 {[%clk 0:00:21.1]} 48. Qxg3 {[%clk 0:00:14.2]}
48... Qxg3 {[%clk 0:00:21]} 49. d7 {[%clk 0:00:12.9]} 49... Qxh3# {[%clk
0:00:20.7]} 0-1

[Event "*** Titled Tuesday Blitz"]
[Site "Chess.com"]
[Date "2020.04.21"]
[Round "3"]
[White "manuellarrea"]
[Black "Omk124"]
[Result "0-1"]
[WhiteElo "2139"]
[BlackElo "2359"]
[TimeControl "180+1"]
[EndTime "10:29:03 PDT"]
[Termination "Omk124 won on time"]

1. e4 {[%clk 0:02:58.5]} 1... c5 {[%clk 0:02:59.7]} 2. Nf3 {[%clk 0:02:51.4]}
2... d6 {[%clk 0:02:59.8]} 3. d4 {[%clk 0:02:50.7]} 3... cxd4 {[%clk 0:02:59.7]}
4. Nxd4 {[%clk 0:02:51.2]} 4... Nf6 {[%clk 0:02:59.7]} 5. Nc3 {[%clk 0:02:51.1]}
5... a6 {[%clk 0:03:00.2]} 6. Bg5 {[%clk 0:02:50.7]} 6... Nbd7 {[%clk 0:03:00]}
7. f4 {[%clk 0:02:49.7]} 7... Qc7 {[%clk 0:02:52]} 8. Qe2 {[%clk 0:02:48.2]}
8... e6 {[%clk 0:02:48]} 9. O-O-O {[%clk 0:02:47.4]} 9... b5 {[%clk 0:02:48.2]}
10. a3 {[%clk 0:02:43.5]} 10... Bb7 {[%clk 0:02:48.3]} 11. g4 {[%clk 0:02:43]}
11... Be7 {[%clk 0:02:47.9]} 12. Bg2 {[%clk 0:02:42.4]} 12... O-O-O {[%clk
0:02:45.2]} 13. Rhe1 {[%clk 0:02:13.9]} 13... h6 {[%clk 0:02:30.2]} 14. Bxf6
{[%clk 0:01:52.3]} 14... Nxf6 {[%clk 0:02:25.8]} 15. e5 {[%clk 0:01:50.4]} 15...
dxe5 {[%clk 0:02:22.8]} 16. fxe5 {[%clk 0:01:34.3]} 16... Nd5 {[%clk 0:02:12.2]}
17. Nxd5 {[%clk 0:01:23.4]} 17... Bxd5 {[%clk 0:02:11.6]} 18. Bxd5 {[%clk
0:01:16.7]} 18... Rxd5 {[%clk 0:02:12.5]} 19. Nf3 {[%clk 0:01:13.6]} 19... Rhd8
{[%clk 0:02:11.1]} 20. Rxd5 {[%clk 0:01:11.8]} 20... Rxd5 {[%clk 0:02:12]} 21.
Rd1 {[%clk 0:01:11.7]} 21... Qc5 {[%clk 0:02:05.6]} 22. Rxd5 {[%clk 0:01:04.1]}
22... Qxd5 {[%clk 0:02:06.5]} 23. Qd3 {[%clk 0:00:59.6]} 23... Qa2 {[%clk
0:01:54.1]} 24. Qd4 {[%clk 0:00:52.4]} 24... Qa1+ {[%clk 0:01:41.2]} 25. Kd2
{[%clk 0:00:50.5]} 25... Qf1 {[%clk 0:01:42.1]} 26. Qe4 {[%clk 0:00:46.2]} 26...
Kb8 {[%clk 0:01:19.2]} 27. Qc6 {[%clk 0:00:44.3]} 27... Qf2+ {[%clk 0:01:18.4]}
28. Kd3 {[%clk 0:00:41.1]} 28... Qc5 {[%clk 0:01:12.3]} 29. Qe8+ {[%clk
0:00:27.4]} 29... Kb7 {[%clk 0:01:09.5]} 30. Qxf7 {[%clk 0:00:26.4]} 30... Qd5+
{[%clk 0:00:56.2]} 31. Nd4 {[%clk 0:00:25.9]} 31... Qc4+ {[%clk 0:00:43.9]} 32.
Ke4 {[%clk 0:00:20.2]} 32... Qd5+ {[%clk 0:00:42]} 33. Ke3 {[%clk 0:00:19.7]}
33... Qd7 {[%clk 0:00:40.3]} 34. Qxe6 {[%clk 0:00:15.9]} 34... Qxe6 {[%clk
0:00:39.3]} 35. Nxe6 {[%clk 0:00:14.9]} 35... g6 {[%clk 0:00:39.9]} 36. Ke4
{[%clk 0:00:13.7]} 36... Kc6 {[%clk 0:00:39.4]} 37. Nd4+ {[%clk 0:00:13.1]}
37... Kc5 {[%clk 0:00:38.3]} 38. b3 {[%clk 0:00:10.3]} 38... a5 {[%clk
0:00:31.5]} 39. Ne6+ {[%clk 0:00:09.9]} 39... Kb6 {[%clk 0:00:30.4]} 40. Nf4
{[%clk 0:00:06.9]} 40... Bxa3 {[%clk 0:00:29.3]} 41. Nxg6 {[%clk 0:00:05.5]}
41... a4 {[%clk 0:00:29.7]} 42. bxa4 {[%clk 0:00:04.9]} 42... bxa4 {[%clk
0:00:30.6]} 43. Kd3 {[%clk 0:00:02.6]} 43... Bb2 {[%clk 0:00:23.9]} 44. Kc4
{[%clk 0:00:01.9]} 44... Ka5 {[%clk 0:00:23.8]} 0-1